bitfinex/quotes_SOLUSD_20230112
["timestamp","ask_amount","ask_price","bid_price","bid_amount"]
[1673546460941,20.0,16.621,16.606,18.75725104]
[1673546461132,45.12,16.624,16.606,18.75725104]
[1673546461346,45.12,16.624,16.605,4.46685]
[1673546461691,20.6,16.62,16.591,49.69433139]
[1673546461857,65.13,16.619,16.599,18.75725104]
[1673546462094,66.09,16.619,16.599,18.75725104]
[1673546462488,17.0,16.618,16.593,20.0]
[1673546462733,45.14,16.617,16.593,20.0]
[1673546462922,17.96,16.616,16.591,20.0]
[1673546463151,45.14,16.615,16.594,18.75725104]
[1673546463481,45.14,16.615,16.594,23.22706104]
[1673546463482,0.96,16.614,16.594,23.22706104]
[1673546463773,45.15,16.613,16.594,23.22706104]
[1673546463891,20.64,16.61,16.584,167.83793139]
[1673546464205,45.16,16.609,16.587,20.0]
[1673546464518,45.16,16.609,16.585,18.75725104]
[1673546464519,0.96,16.608,16.585,18.75725104]
[1673546464732,45.17,16.607,16.588,18.15725104]
[1673546465140,17.96,16.606,16.578,20.0]
[1673546465342,103.53,16.6,16.579,4.47386]
[1673546465562,45.19,16.599,16.579,4.47386]
[1673546465768,45.19,16.599,16.579,18.75725104]
[1673546465985,45.17,16.605,16.58,18.75725104]
[1673546466191,20.0,16.608,16.581,4.47332]
[1673546466491,20.0,16.608,16.581,48.76618341]
[1673546466704,45.15,16.613,16.582,63.05011445]
[1673546467009,45.15,16.613,16.583,4.47278]
[1673546467154,103.3,16.61,16.583,23.23003104]
[1673546467348,45.16,16.609,16.584,18.75725104]
[1673546467963,20.0,16.608,16.583,4.47278]
[1673546468185,20.51,16.6,16.584,18.75725104]
[1673546468400,46.15,16.599,16.584,37.51450208]
[1673546468590,46.15,16.599,16.58,20.0]
[1673546469012,0.96,16.599,16.581,18.75725104]
[1673546469557,0.96,16.599,16.58,24.47359]
[1673546469775,0.96,16.599,16.58,4.47359]
[1673546469978,0.96,16.599,16.581,18.75725104]
[1673546470251,65.17,16.606,16.582,20.0]
[1673546470404,20.62,16.61,16.582,20.0]
[1673546470623,45.17,16.605,16.583,38.75725104]
[1673546470940,45.16,16.608,16.584,4.47251]
[1673546471134,63.91725104,16.608,16.584,43.22976104]
[1673546471356,18.75725104,16.607,16.584,43.22976104]
[1673546471660,20.6,16.6,16.579,18.75725104]
[1673546471866,45.19,16.599,16.57,20.0]
[1673546472071,46.15,16.599,16.57,20.0]
[1673546472290,46.15,16.599,16.572,18.75725104]
[1673546472495,45.19,16.599,16.574,20.0]
[1673546472710,45.17,16.605,16.574,20.0]
[1673546472909,20.0,16.604,16.576,20.0]
[1673546473122,45.18,16.603,16.577,4.4744]
[1673546473357,45.17,16.604,16.577,23.23165104]
[1673546473663,20.64,16.6,16.578,18.75725104]
[1673546473900,20.64,16.6,16.577,4.4744]
[1673546473901,45.19,16.599,16.579,4.47386]
[1673546474407,63.94725104,16.599,16.57,20.0]
[1673546474594,20.0,16.598,16.572,4.47575]
[1673546474798,45.19,16.597,16.572,4.47575]
[1673546475013,46.15,16.597,16.573,18.75725104]
[1673546475254,46.15,16.597,16.573,4.47548]
[1673546475255,17.0,16.596,16.573,4.47548]
[1673546475433,20.0,16.594,16.567,18.75725104]
[1673546475660,17.0,16.593,16.562,20.0]
[1673546475870,0.96,16.594,16.574,18.75725104]
[1673546476071,109.4845,16.596,16.57,20.7]
[1673546476296,45.17,16.604,16.57,25.17629]
[1673546476617,45.17,16.604,16.571,40.0]
[1673546476818,4.53111,16.603,16.571,58.75725104]
[1673546477026,45.18,16.602,16.572,175.46391445]
[1673546477219,4.53111,16.603,16.573,20.0]
[1673546477435,45.16,16.608,16.58,41.5]
[1673546477651,103.57,16.62,16.58,41.5]
[1673546477652,45.15,16.613,16.581,21.92]
[1673546477868,4.53111,16.612,16.581,60.67725104]
[1673546478057,20.51,16.61,16.581,41.92]
[1673546478291,45.16,16.609,16.581,20.0]
[1673546478477,63.91725104,16.609,16.581,20.0]
[1673546478691,45.16,16.609,16.581,20.0]
[1673546478916,45.16,16.609,16.574,18.75725104]
[1673546479145,20.0,16.608,16.581,18.75725104]
[1673546479342,45.17,16.607,16.575,24.47494]
[1673546479550,20.7,16.6,16.576,23.23192104]
[1673546479961,45.19,16.599,16.577,4.4744]
[1673546480103,17.96,16.598,16.577,4.4744]
[1673546480394,45.19,16.597,16.577,4.4744]
[1673546480595,20.53,16.59,16.577,4.4744]
[1673546480796,45.22,16.589,16.577,4.4744]
[1673546481044,63.18,16.589,16.577,4.4744]
[1673546481212,46.18,16.589,16.577,4.4744]
[1673546481528,20.0,16.588,16.577,4.4744]
[1673546481734,45.22,16.587,16.577,4.4744]
[1673546482140,0.96,16.586,16.577,4.4744]
[1673546483231,20.54,16.6,16.577,4.4744]
[1673546483561,116.7668,16.618,16.58,20.53]
[1673546483779,45.15,16.613,16.58,20.53]
[1673546483957,45.15,16.613,16.581,18.75725104]
[1673546484284,4.53111,16.612,16.582,20.0]
[1673546484496,24.53111,16.612,16.583,20.96]
[1673546484803,45.16,16.611,16.584,20.96]
[1673546485025,103.34,16.61,16.584,38.75725104]
[1673546485218,45.16,16.609,16.585,38.75725104]
[1673546485428,20.0,16.608,16.585,18.75725104]
[1673546485655,45.17,16.607,16.586,18.75725104]
[1673546486081,20.64,16.6,16.582,20.0]
[1673546486273,45.19,16.599,16.583,18.75725104]
[1673546486480,45.19,16.599,16.584,20.0]
[1673546486688,45.19,16.599,16.564,20.0]
[1673546486902,37.0,16.598,16.571,113.45]
[1673546487114,45.19,16.597,16.574,18.75725104]
[1673546487330,0.96,16.597,16.574,18.75725104]
[1673546487593,45.19,16.599,16.575,20.0]
[1673546487856,20.0,16.598,16.575,20.0]
[1673546488057,49.72111,16.597,16.575,20.0]
[1673546488261,4.53111,16.596,16.571,113.45]
[1673546488467,65.2,16.595,16.572,20.0]
[1673546488680,69.73111,16.595,16.572,20.0]
[1673546488894,17.0,16.594,16.572,20.0]
[1673546489099,65.2,16.593,16.566,18.75725104]
[1673546489309,20.68,16.59,16.564,20.0]
[1673546489519,65.22,16.589,16.564,20.0]
[1673546489948,0.96,16.588,16.564,20.0]
[1673546490164,0.96,16.588,16.565,18.75725104]
[1673546490362,0.96,16.588,16.566,4.47737]
[1673546490571,0.96,16.588,16.566,24.47737]
[1673546490808,0.96,16.588,16.567,18.75725104]
[1673546490993,0.96,16.588,16.568,4.47683]
[1673546490994,45.22,16.587,16.568,4.47683]
[1673546491415,45.2,16.594,16.568,4.47683]
[1673546491645,82.2,16.594,16.568,4.47683]
[1673546491927,20.53,16.59,16.568,4.47683]
[1673546492064,45.22,16.589,16.568,4.47683]
[1673546492281,17.0,16.588,16.568,4.47683]
[1673546492467,45.22,16.587,16.569,18.75725104]
[1673546492792,20.0,16.588,16.57,4.47629]
[1673546493028,45.22,16.587,16.57,4.47629]
[1673546493214,45.22,16.589,16.57,4.47629]
[1673546493628,185.1,16.588,16.57,4.47629]
[1673546493838,154.2447,16.587,16.57,4.47629]
[1673546494087,339.3447,16.587,16.57,4.47629]
[1673546494248,21.53111,16.586,16.567,18.75725104]
[1673546494479,20.53,16.58,16.554,115.8441]
[1673546494683,82.24,16.579,16.554,18.75725104]
[1673546494887,82.24,16.579,16.555,20.0]
[1673546495152,62.24,16.579,16.555,20.0]
[1673546495298,0.96,16.578,16.556,18.75725104]
[1673546495525,45.23,16.584,16.556,18.75725104]
[1673546495727,20.7,16.58,16.556,18.75725104]
[1673546495992,45.24,16.579,16.556,38.75725104]
[1673546496255,45.24,16.579,16.556,18.75725104]
[1673546496507,45.23,16.582,16.557,48.45158243]
[1673546496677,20.0,16.583,16.558,0.96]
[1673546496906,20.0,16.583,16.558,19.71725104]
[1673546497101,45.23,16.584,16.559,20.0]
[1673546497353,110.0146,16.585,16.56,0.96]
[1673546497642,110.0146,16.585,16.56,19.71725104]
[1673546497859,45.23,16.584,16.561,38.75725104]
[1673546498165,49.76111,16.584,16.562,20.0]
[1673546498398,4.53111,16.583,16.558,20.0]
[1673546498695,45.23,16.582,16.558,20.0]
[1673546498889,63.98725104,16.582,16.557,20.0]
[1673546499092,55.75725104,16.581,16.557,20.0]
[1673546499505,55.75725104,16.581,16.553,20.0]
[1673546499506,89.03836104,16.58,16.553,20.0]
[1673546499654,24.53111,16.579,16.552,115.8441]
[1673546499829,45.25,16.578,16.552,115.8441]
[1673546500047,46.21,16.578,16.552,115.8441]
[1673546500252,17.0,16.577,16.553,20.0]
[1673546500464,45.25,16.576,16.546,38.78045669]
[1673546500694,45.25,16.576,16.549,18.75725104]
[1673546500695,0.96,16.575,16.549,18.75725104]
[1673546500898,45.26,16.574,16.545,111.2306]
[1673546501124,24.53111,16.573,16.545,111.2306]
[1673546501323,86.79111,16.572,16.545,111.2306]
[1673546501540,20.0,16.571,16.545,111.2306]
[1673546501749,45.27,16.57,16.545,111.2306]
[1673546501950,153.8217,16.569,16.545,111.2306]
[1673546502169,20.0,16.567,16.545,111.2306]
[1673546502360,46.24,16.566,16.545,111.2306]
[1673546502783,17.0,16.565,16.545,111.2306]
[1673546502983,45.28,16.564,16.539,18.75725104]
[1673546503213,17.0,16.563,16.54,108.7382]
[1673546503430,46.25,16.562,16.54,108.7382]
[1673546503654,0.96,16.562,16.54,108.7382]
[1673546503960,45.29,16.561,16.54,108.7382]
[1673546504155,45.29,16.561,16.535,20.0]
[1673546504156,20.0,16.559,16.535,20.0]
[1673546504358,45.3,16.558,16.534,20.0]
[1673546504570,247.4,16.558,16.534,20.0]
[1673546504886,20.7,16.55,16.53,20.0]
[1673546505119,65.32,16.549,16.53,20.0]
[1673546505527,0.96,16.548,16.53,20.0]
[1673546505749,0.96,16.548,16.526,29.69433139]
[1673546505950,0.96,16.548,16.524,29.69433139]
[1673546506471,45.3,16.557,16.53,20.7]
[1673546506795,38.75725104,16.559,16.531,20.0]
[1673546507031,45.3,16.558,16.531,20.0]
[1673546507311,20.0,16.556,16.529,20.0]
[1673546507663,45.28,16.565,16.531,29.69433139]
[1673546507842,45.28,16.565,16.53,122.25725104]
[1673546507843,45.28,16.565,16.532,49.69433139]
[1673546508126,230.38,16.565,16.532,40.0]
[1673546508253,18.75725104,16.564,16.532,40.0]
[1673546508578,20.6,16.56,16.532,40.0]
[1673546508818,45.3,16.559,16.532,20.0]
[1673546508986,269.15725104,16.559,16.532,20.0]
[1673546509203,18.75725104,16.558,16.532,20.0]
[1673546509399,185.1,16.556,16.532,20.0]
[1673546509726,20.53,16.55,16.531,20.0]
[1673546509953,45.32,16.549,16.525,20.0]
[1673546510288,20.0,16.548,16.522,20.0]
[1673546510470,185.1,16.546,16.522,20.0]
[1673546510662,45.34,16.545,16.522,20.0]
[1673546510865,20.0,16.548,16.523,18.75725104]
[1673546511088,65.33,16.547,16.523,18.75725104]
[1673546511351,20.0,16.547,16.523,18.75725104]
[1673546511716,45.32,16.55,16.523,48.45158243]
[1673546511918,45.32,16.55,16.524,20.0]
[1673546512161,37.0,16.549,16.525,20.0]
[1673546512475,45.33,16.548,16.525,20.0]
[1673546512793,17.0,16.547,16.525,20.0]
[1673546512974,46.29,16.546,16.525,20.0]
[1673546513201,45.33,16.546,16.525,20.0]
[1673546513386,18.75725104,16.546,16.525,20.0]
[1673546513601,20.0,16.545,16.521,20.0]
[1673546513834,45.34,16.544,16.521,20.0]
[1673546514770,18.75725104,16.545,16.52,20.0]
[1673546514985,35.75725104,16.543,16.521,20.0]
[1673546515206,20.0,16.549,16.521,20.0]
[1673546515207,185.1,16.547,16.521,20.0]
[1673546515422,18.75725104,16.547,16.521,20.0]
[1673546515656,18.75725104,16.547,16.522,18.75725104]
[1673546515830,18.75725104,16.547,16.521,20.0]
[1673546515831,45.33,16.546,16.521,20.0]
[1673546516264,18.75725104,16.547,16.52,20.0]
[1673546516387,18.75725104,16.546,16.521,20.0]
[1673546516583,20.49,16.54,16.517,20.0]
[1673546516789,20.49,16.54,16.511,29.69433139]
[1673546516790,230.45,16.539,16.508,29.69433139]
[1673546516982,269.20725104,16.539,16.508,117.557]
[1673546517207,185.1,16.537,16.508,117.557]
[1673546517438,185.1,16.535,16.509,20.0]
[1673546517636,230.47,16.534,16.509,20.0]
[1673546517833,17.0,16.533,16.509,20.0]
[1673546518036,20.54,16.53,16.509,20.0]
[1673546518244,65.38,16.529,16.509,20.0]
[1673546518476,45.38,16.529,16.509,20.0]
[1673546518664,45.37,16.532,16.507,18.75725104]
[1673546518875,45.37,16.532,16.502,29.69433139]
[1673546519090,20.0,16.529,16.504,20.0]
[1673546519309,45.37,16.532,16.51,20.7]
[1673546519846,45.37,16.532,16.511,20.0]
[1673546520035,185.1,16.531,16.505,20.0]
[1673546520247,45.38,16.53,16.504,20.0]
[1673546520541,20.0,16.529,16.504,20.0]
[1673546520681,45.38,16.528,16.504,20.0]
[1673546520997,17.0,16.527,16.504,20.0]
[1673546521198,45.39,16.526,16.504,20.0]
[1673546521617,17.29900775,16.526,16.504,20.0]
[1673546521816,79.68900775,16.525,16.504,20.0]
[1673546522052,45.39,16.525,16.503,20.0]
[1673546522248,17.29900775,16.527,16.503,20.0]
[1673546522452,17.0,16.524,16.503,20.0]
[1673546522714,45.37,16.532,16.525,15.25088976]
[1673546522889,45.36,16.537,16.525,15.25088976]
[1673546523153,45.35,16.541,16.525,14.75088976]
[1673546524850,62.87032471,16.541,16.525,14.75088976]
[1673546524975,112.424,16.542,16.525,14.75088976]
[1673546525314,45.33,16.546,16.525,14.75088976]
[1673546525512,45.33,16.548,16.525,14.75088976]
[1673546525716,17.52032471,16.545,16.525,14.75088976]
[1673546525951,45.34,16.544,16.525,14.75088976]
[1673546526150,45.32,16.549,16.525,14.75088976]
[1673546526349,45.32,16.55,16.526,18.75725104]
[1673546526543,45.32,16.55,16.527,20.0]
[1673546526895,45.3,16.558,16.53,20.7]
[1673546527105,45.3,16.559,16.531,134.7942]
[1673546527311,45.3,16.559,16.531,153.55145104]
[1673546527504,45.3,16.559,16.532,18.75725104]
[1673546527709,45.28,16.567,16.533,21.92]
[1673546528115,20.0,16.566,16.54,20.7]
[1673546528242,45.28,16.565,16.541,132.8742]
[1673546528448,45.27,16.568,16.541,131.63145104]
[1673546528657,230.37,16.568,16.541,43.49345067]
[1673546528870,230.37,16.568,16.541,18.75725104]
[1673546529074,45.27,16.568,16.541,69.54946768]
[1673546529299,20.0,16.567,16.541,69.54946768]
[1673546529489,45.25,16.576,16.542,1.92]
[1673546529807,17.52032471,16.574,16.542,112.8742]
[1673546530038,45.26,16.573,16.543,18.75725104]
[1673546530223,45.25,16.576,16.544,20.96]
[1673546530431,45.25,16.576,16.545,0.96]
[1673546530634,17.52032471,16.575,16.544,20.96]
[1673546530849,45.22,16.586,16.55,103.5]
[1673546531060,45.22,16.586,16.552,1.06311166]
[1673546531299,45.22,16.586,16.56,20.5]
[1673546531501,185.1,16.585,16.553,18.75725104]
[1673546531831,185.1,16.585,16.552,113.3658]
[1673546531832,185.1,16.583,16.554,20.0]
[1673546532024,20.6,16.58,16.554,20.0]
[1673546532227,20.6,16.58,16.545,113.3658]
[1673546532228,20.6,16.57,16.545,113.3658]
[1673546532503,230.37,16.569,16.545,113.3658]
[1673546532642,20.0,16.568,16.545,113.3658]
[1673546532880,247.38,16.567,16.54,20.74]
[1673546533182,20.0,16.566,16.54,20.7]
[1673546533413,45.28,16.565,16.54,20.7]
[1673546533603,45.28,16.565,16.538,18.75725104]
[1673546533604,45.27,16.569,16.538,18.75725104]
[1673546533794,45.27,16.569,16.541,18.75725104]
[1673546534001,161.7265,16.569,16.544,18.75725104]
[1673546534217,230.35,16.577,16.544,18.75725104]
[1673546534425,230.35,16.577,16.54,103.52]
[1673546534657,20.96,16.576,16.54,46.786784]
[1673546534856,20.0,16.573,16.54,46.786784]
[1673546535192,20.51,16.57,16.54,18.75725104]
[1673546535376,185.1,16.568,16.537,20.0]
[1673546535737,185.1,16.566,16.537,20.0]
[1673546535915,20.68,16.56,16.536,119.999]
[1673546536115,20.68,16.56,16.531,20.0]
[1673546536116,250.4,16.559,16.531,20.0]
[1673546536337,17.0,16.558,16.531,20.0]
[1673546536545,17.0,16.558,16.53,132.79]
[1673546536546,185.1,16.556,16.53,112.05]
[1673546536813,185.1,16.554,16.525,14.75088976]
[1673546536970,185.1,16.552,16.525,14.75088976]
[1673546537166,45.32,16.551,16.525,34.75088976]
[1673546537382,45.32,16.552,16.526,18.75725104]
[1673546537590,17.07491377,16.556,16.526,18.75725104]
[1673546537899,62.31,16.555,16.526,18.75725104]
[1673546538017,20.96,16.554,16.527,20.0]
[1673546538219,45.31,16.555,16.528,20.0]
[1673546538220,185.1,16.552,16.528,20.0]
[1673546538433,185.1,16.552,16.528,38.75725104]
[1673546538750,412.18446553,16.582,16.528,38.75725104]
[1673546538751,20.0,16.582,16.541,20.0]
[1673546538981,20.0,16.582,16.553,139.7159464]
[1673546539161,45.24,16.581,16.553,139.7159464]
[1673546539368,30.56624719,16.622,16.554,18.75725104]
[1673546539574,20.0,16.598,16.555,20.96]
[1673546539797,20.0,16.598,16.57,20.7]
[1673546540012,45.19,16.597,16.571,22.75]
[1673546540214,45.19,16.597,16.572,20.0]
[1673546540420,45.19,16.597,16.573,23.34]
[1673546540627,45.16,16.609,16.574,20.96]
[1673546540854,20.0,16.608,16.58,20.5]
[1673546541124,20.0,16.608,16.575,64.00725104]
[1673546541125,45.17,16.607,16.575,64.00725104]
[1673546541272,45.17,16.607,16.581,18.75725104]
[1673546541583,45.17,16.607,16.582,20.0]
[1673546541794,65.15,16.613,16.583,20.0]
[1673546542210,65.15,16.613,16.584,38.75725104]
[1673546542437,20.54,16.61,16.584,52.36985067]
[1673546542621,230.26,16.609,16.584,52.36985067]
[1673546542837,20.0,16.608,16.571,20.0]
[1673546543155,185.1,16.606,16.57,20.67]
[1673546543376,230.27,16.605,16.571,18.75725104]
[1673546543718,20.0,16.604,16.571,18.75725104]
[1673546543902,82.18,16.603,16.572,20.0]
[1673546544100,20.5,16.6,16.571,18.75725104]
[1673546544463,185.1,16.598,16.56,20.8]
[1673546544627,185.1,16.596,16.56,20.8]
[1673546544976,20.53,16.59,16.561,25.37]
[1673546545173,65.22,16.589,16.56,39.55725104]
[1673546545484,17.0,16.588,16.559,25.37]
[1673546545670,20.0,16.586,16.561,18.75725104]
[1673546545883,45.23,16.585,16.561,18.75725104]
[1673546546092,20.0,16.593,16.563,20.0]
[1673546546322,45.21,16.592,16.564,24.34]
[1673546546540,45.21,16.592,16.564,18.75725104]
[1673546546738,45.21,16.592,16.565,38.75725104]
[1673546546945,45.21,16.592,16.566,24.01]
[1673546547144,45.21,16.592,16.566,18.75725104]
[1673546547356,45.21,16.592,16.565,20.0]
[1673546547357,20.49,16.59,16.565,20.0]
[1673546547599,45.22,16.589,16.565,20.0]
[1673546547774,20.0,16.588,16.565,20.0]
[1673546547988,45.21,16.592,16.565,20.0]
[1673546548301,17.0,16.591,16.562,20.0]
[1673546548530,45.21,16.59,16.57,20.5]
[1673546548735,20.0,16.595,16.571,43.56]
[1673546548736,65.2,16.595,16.571,43.56]
[1673546549148,65.2,16.595,16.571,20.0]
[1673546549358,185.1,16.594,16.571,20.0]
[1673546549581,20.0,16.593,16.571,46.03]
[1673546550206,65.2,16.595,16.571,46.03]
[1673546550428,20.0,16.595,16.571,46.03]
[1673546550630,17.0,16.594,16.571,20.0]
[1673546550857,250.3,16.593,16.565,46.27]
[1673546551154,270.3,16.593,16.561,20.0]
[1673546551383,85.2,16.593,16.56,133.8555]
[1673546551786,16.09296539,16.592,16.56,159.4255]
[1673546551993,45.21,16.591,16.564,20.0]
[1673546552400,45.21,16.591,16.57,20.57]
[1673546552619,45.21,16.591,16.571,20.0]
[1673546553043,45.21,16.592,16.571,20.0]
[1673546553235,20.0,16.591,16.565,44.17]
[1673546553467,45.21,16.59,16.57,20.7]
[1673546553697,45.2,16.594,16.571,43.18]
[1673546553880,45.2,16.594,16.571,20.0]
[1673546554106,163.3825,16.596,16.572,23.91]
[1673546554325,118.1825,16.596,16.573,20.0]
[1673546554523,45.19,16.6,16.574,26.52]
[1673546554843,45.18,16.602,16.575,20.0]
[1673546555059,45.18,16.602,16.573,20.0]
[1673546555060,20.53,16.6,16.573,20.0]
[1673546555255,185.1,16.598,16.574,28.65]
[1673546555569,118.1825,16.605,16.575,20.0]
[1673546555570,65.17,16.604,16.575,20.0]
[1673546555781,118.1825,16.605,16.576,29.45]
[1673546555995,45.17,16.606,16.58,103.61]
[1673546556242,45.15,16.613,16.581,51.72]
[1673546556396,45.14,16.618,16.59,20.53]
[1673546556626,45.14,16.618,16.591,20.0]
[1673546556838,45.15,16.613,16.592,20.0]
[1673546557064,45.15,16.613,16.591,20.0]
[1673546557690,20.0,16.612,16.591,20.0]
[1673546558005,45.15,16.613,16.591,20.0]
[1673546558197,20.0,16.617,16.592,38.75725104]
[1673546558420,45.14,16.616,16.593,59.1]
[1673546558607,20.0,16.615,16.593,59.1]
[1673546558820,185.1,16.613,16.593,20.0]
[1673546559045,45.15,16.614,16.593,20.0]
[1673546559046,185.1,16.611,16.593,20.0]
[1673546559249,45.16,16.61,16.584,20.0]
[1673546559496,185.1,16.609,16.585,37.25]
[1673546559679,20.0,16.608,16.586,20.0]
[1673546559882,45.17,16.607,16.586,20.0]
[1673546560102,20.0,16.608,16.586,20.0]
[1673546560546,20.0,16.605,16.586,20.0]
[1673546560720,45.17,16.604,16.585,18.75725104]
[1673546560924,45.17,16.604,16.582,20.0]
[1673546561162,185.1,16.606,16.585,18.75725104]
[1673546561373,185.1,16.612,16.583,20.0]
[1673546561649,20.0,16.61,16.584,38.75725104]
[1673546561773,45.16,16.609,16.585,64.58]
[1673546561981,45.16,16.609,16.585,83.33725104]
[1673546562205,185.1,16.608,16.586,18.75725104]
[1673546562416,230.27,16.607,16.584,20.0]
[1673546562724,230.27,16.607,16.581,52.40380541]
[1673546562725,20.0,16.606,16.581,52.40380541]
[1673546562914,185.1,16.604,16.584,18.75725104]
[1673546563131,230.28,16.603,16.581,52.40380541]
[1673546563346,230.28,16.603,16.581,71.16105645]
[1673546563819,185.1,16.601,16.581,18.75725104]
[1673546563967,45.19,16.6,16.576,52.40380541]
[1673546564179,45.18,16.601,16.582,18.75725104]
[1673546564402,20.0,16.602,16.582,18.75725104]
[1673546564601,45.17,16.604,16.583,20.0]
[1673546564862,20.0,16.601,16.583,20.0]
[1673546565030,20.0,16.601,16.584,18.75725104]
[1673546565264,20.0,16.601,16.583,20.0]
[1673546565265,20.0,16.601,16.585,20.0]
[1673546565454,20.0,16.601,16.583,20.0]
[1673546565663,185.1,16.599,16.582,47.87113874]
[1673546565855,185.1,16.597,16.582,47.87113874]
[1673546566070,185.1,16.595,16.57,20.73]
[1673546566291,185.1,16.593,16.567,110.2204]
[1673546566510,250.31,16.592,16.57,18.75725104]
[1673546566831,250.31,16.592,16.564,45.28]
[1673546566832,20.0,16.591,16.564,45.28]
[1673546567112,185.1,16.589,16.566,18.75725104]
[1673546567339,37.0,16.591,16.561,118.2786]
[1673546567340,65.22,16.588,16.561,118.2786]
[1673546567550,267.32,16.588,16.561,118.2786]
[1673546567783,65.22,16.588,16.562,18.75725104]
[1673546567969,45.22,16.588,16.562,18.75725104]
[1673546568208,20.0,16.587,16.563,44.04]
[1673546568413,20.0,16.587,16.57,20.57]
[1673546568618,20.0,16.592,16.57,20.57]
[1673546568825,20.0,16.592,16.57,39.32725104]
[1673546569042,45.2,16.595,16.571,43.85]
[1673546569259,45.2,16.595,16.572,20.0]
[1673546569438,45.19,16.598,16.572,38.75725104]
[1673546569649,65.2,16.595,16.572,20.0]
[1673546569877,65.2,16.595,16.572,38.75725104]
[1673546570100,65.2,16.595,16.572,18.75725104]
[1673546570347,65.2,16.595,16.565,44.06]
[1673546570510,20.0,16.594,16.573,18.75725104]
[1673546570838,45.2,16.595,16.57,103.61]
[1673546571037,45.19,16.599,16.571,43.98]
[1673546571396,20.0,16.601,16.571,43.98]
[1673546571397,20.0,16.601,16.58,20.53]
[1673546571544,45.17,16.604,16.581,42.94]
[1673546571882,16.09296539,16.61,16.582,20.0]
[1673546572083,45.16,16.609,16.583,44.11]
[1673546572486,185.1,16.604,16.584,20.0]
[1673546572589,230.28,16.603,16.584,20.0]
[1673546572819,20.0,16.602,16.573,45.26]
[1673546573008,49.96115,16.601,16.572,65.26]
[1673546573229,4.78115,16.601,16.572,65.26]
[1673546573677,20.0,16.604,16.573,4.72244]
[1673546573879,114.011,16.605,16.58,20.5]
[1673546574062,159.181,16.605,16.581,45.24]
[1673546574276,130.10396539,16.605,16.581,65.24]
[1673546574485,114.011,16.605,16.582,20.0]
[1673546574715,344.281,16.605,16.583,45.23]
[1673546574909,299.111,16.605,16.584,20.0]
[1673546575116,45.17,16.604,16.584,20.0]
[1673546575536,201.32291124,16.609,16.583,20.0]
[1673546575780,250.26,16.608,16.583,65.23]